[Event "94th FRA-ch Open D 2019"]
[Site "Chartres"]
[Date "2019.08.17"]
[Round "1.1"]
[White "Penalver, Francois"]
[Black "Derrien, Fabrice"]
[Result "1/2-1/2"]
[ECO "C10"]
[WhiteElo "1596"]
[BlackElo "1412"]
[Annotator "NA"]
[PlyCount "122"]
[EventDate "2019.08.17"]
[EventType "swiss"]
[EventCountry "FRA"]
[SourceTitle "playchess.com"]
[Source "ChessBase"]
[SourceQuality "1"]
[TimeControl "40/5400+30:1800+30"]

1. e4 {[%emt 0:00:00]} e6 {[%emt 0:02:49]} 2. d4 {[%emt 0:00:10]} d5 {[%emt 0:00:45]} 3. Nd2 {[%emt 0:00:58]} dxe4 {[%emt 0:02:54]} 4. Nxe4 {[%emt 0:00:12]} Nd7 {[%emt 0:00:12]} 5. Nf3 {[%emt 0:00:30]} Ngf6 {[%emt 0:00:46]} 6. Nxf6+ {[%emt 0:05:44]} Nxf6 {[%emt 0:03:28]} 7. Bd3 {[%emt 0:02:03]} Be7 {[%emt 0:01:12]} 8. O-O {[%emt 0:00:13]} O-O {[%emt 0:00:28]} 9. c3 {[%emt 0:00:43]} b6 {[%emt 0:04:03]} 10. Qc2 {[%emt 0:00:52]} Bb7 {[%emt 0:02:27]} 11. Ng5 {[%emt 0:04:04]} g6 {[%emt 0:05:53]} 12. Ne4 {[%emt 0:04:23]} Nxe4 {[%emt 0:05:34]} 13. Bxe4 {[%emt 0:00:06]} Bxe4 {[%emt 0:00:13]} 14. Qxe4 {[%emt 0:00:07]} c5 {[%emt 0:00:06]} 15. Bh6 {[%emt 0:00:37]} Re8 {[%emt 0:00:33]} 16. Rad1 {[%emt 0:00:33]} Qc7 {[%emt 0:07:39]} 17. Bf4 {[%emt 0:03:33]} Bd6 {[%emt 0:06:10]} 18. Bxd6 {[%emt 0:01:42]} Qxd6 {[%emt 0:00:03]} 19. dxc5 {[%emt 0:00:40]} Qxc5 {[%emt 0:00:18]} 20. Rd2 {[%emt 0:01:27]} Rad8 {[%emt 0:12:32]} 21. Rfd1 {[%emt 0:00:11]} Qe7 {[%emt 0:00:11]} 22. h3 {[%emt 0:01:22]} Rxd2 {[%emt 0:08:31]} 23. Rxd2 {[%emt 0:00:10]} Rc8 {[%emt 0:12:32]} 24. Qa4 {[%emt 0:01:11]} Rc7 {[%emt 0:02:34]} 25. Qd1 {[%emt 0:00:23]} e5 {[%emt 0:02:48]} 26. Rd8+ {[%emt 0:04:48]} Kg7 {[%emt 0:02:06]} 27. g3 {[%emt 0:00:55]} Qe6 {[%emt 0:01:42]} 28. Qd6 {[%emt 0:06:14]} Qxd6 {[%emt 0:04:16]} 29. Rxd6 {[%emt 0:00:06]} f6 {[%emt 0:00:10]} 30. Kg2 {[%emt 0:00:25]} Kf7 {[%emt 0:00:08]} 31. Kf3 {[%emt 0:00:32]} Ke7 {[%emt 0:00:09]} 32. Rd2 {[%emt 0:00:10]} Ke6 {[%emt 0:03:48]} 33. Ke3 {[%emt 0:02:00]} Rc4 {[%emt 0:02:44]} 34. Kd3 {[%emt 0:00:58]} Kd5 {[%emt 0:01:25]} 35. Kc2+ {[%emt 0:00:37]} Ke4 {[%emt 0:00:07]} 36. b3 {[%emt 0:02:55]} Rc7 {[%emt 0:00:14]} 37. Rd3 {[%emt 0:01:44]} h5 {[%emt 0:01:54]} 38. f3+ {[%emt 0:01:02]} Kf5 {[%emt 0:00:07]} 39. Rd5 {[%emt 0:00:33]} g5 {[%emt 0:00:28]} 40. Kd3 {[%emt 0:01:04]} g4 {[%emt 0:00:48]} 41. hxg4+ {[%emt 0:30:34]} hxg4 {[%emt 0:30:07]} 42. f4 {[%emt 0:00:04]} Ke6 {[%emt 0:00:23]} 43. c4 {[%emt 0:00:32]} exf4 {[%emt 0:00:24]} 44. gxf4 {[%emt 0:00:10]} Rh7 {[%emt 0:00:22]} 45. Ke4 {[%emt 0:00:31]} Rh2 {[%emt 0:00:41]} 46. f5+ {[%emt 0:00:06]} Ke7 {[%emt 0:00:34]} 47. a4 {[%emt 0:00:21]} g3 {[%emt 0:00:25]} 48. Kf3 {[%emt 0:01:32]} g2 {[%emt 0:00:19]} 49. Kf2 {[%emt 0:00:39]} g1=Q+ {[%emt 0:03:39]} 50. Kxg1 {[%emt 0:00:03]} Rb2 {[%emt 0:00:14]} 51. Rd3 {[%emt 0:00:03]} Kf7 {[%emt 0:00:13]} 52. a5 {[%emt 0:00:50]} Kg7 {[%emt 0:00:21]} 53. Rd7+ {[%emt 0:00:20]} Kh6 {[%emt 0:00:06]} 54. Rxa7 {[%emt 0:00:03]} bxa5 {[%emt 0:00:21]} 55. Rxa5 {[%emt 0:00:18]} Rxb3 {[%emt 0:00:03]} 56. Rc5 {[%emt 0:00:41]} Kg5 {[%emt 0:00:19]} 57. Rb5 {[%emt 0:00:25]} Rc3 {[%emt 0:00:16]} 58. c5 {[%emt 0:00:09]} Kxf5 {[%emt 0:00:05]} 59. Kf2 {[%emt 0:00:19]} Ke6 {[%emt 0:00:24]} 60. Rb6+ {[%emt 0:00:44]} Kd5 {[%emt 0:00:41]} 61. Rxf6 {[%emt 0:00:14]} Kxc5 {[%emt 0:00:14]} 1/2-1/2

[Event "94th FRA-ch Open D 2019"]
[Site "Chartres"]
[Date "2019.08.17"]
[Round "1.2"]
[White "Jugeau, Frederic"]
[Black "Catherinot, Laetitia"]
[Result "1/2-1/2"]
[ECO "B01"]
[WhiteElo "1411"]
[BlackElo "1587"]
[Annotator "NA"]
[PlyCount "88"]
[EventDate "2019.08.17"]
[EventType "swiss"]
[EventCountry "FRA"]
[SourceTitle "playchess.com"]
[Source "ChessBase"]
[SourceQuality "1"]
[TimeControl "40/5400+30:1800+30"]

1. e4 {[%emt 0:00:00]} d5 {[%emt 0:00:00]} 2. exd5 {[%emt 0:00:29]} Nf6 {[%emt 0:00:00]} 3. d4 {[%emt 0:03:20]} Nxd5 {[%emt 0:00:00]} 4. c4 {[%emt 0:04:53]} Nb6 {[%emt 0:00:00]} 5. Nc3 {[%emt 0:02:01]} e5 {[%emt 0:00:43]} 6. dxe5 {[%emt 0:06:11]} Qxd1+ {[%emt 0:00:09]} 7. Nxd1 {[%emt 0:03:08]} Be6 {[%emt 0:02:53]} 8. b3 {[%emt 0:02:55]} Nc6 {[%emt 0:00:28]} 9. Nf3 {[%emt 0:04:41]} Nb4 {[%emt 0:06:06]} 10. Ne3 {[%emt 0:04:22]} Bc5 {[%emt 0:00:24]} 11. Ba3 {[%emt 0:08:43]} O-O-O {[%emt 0:04:48]} 12. Be2 {[%emt 0:06:15]} Nd3+ {[%emt 0:01:33]} 13. Bxd3 {[%emt 0:00:20]} Bxa3 {[%emt 0:00:05]} 14. Ke2 {[%emt 0:13:13]} h6 {[%emt 0:05:09]} 15. Rhd1 {[%emt 0:11:59]} g6 {[%emt 0:06:01]} 16. Be4 {[%emt 0:04:44]} Nd7 {[%emt 0:03:15]} 17. Nd5 {[%emt 0:06:46]} c6 {[%emt 0:04:10]} 18. Nf4 {[%emt 0:04:03]} Bg4 {[%emt 0:02:24]} 19. h3 {[%emt 0:06:55]} Bxf3+ {[%emt 0:02:41]} 20. Kxf3 {[%emt 0:02:03]} Nxe5+ {[%emt 0:00:07]} 21. Kg3 {[%emt 0:00:36]} Bd6 {[%emt 0:04:51]} 22. Kh2 {[%emt 0:01:25]} g5 {[%emt 0:02:52]} 23. Nh5 {[%emt 0:00:14]} Nxc4+ {[%emt 0:05:02]} 24. Kg1 {[%emt 0:00:45]} Nb6 {[%emt 0:01:33]} 25. Bf5+ {[%emt 0:00:38]} Kc7 {[%emt 0:00:25]} 26. Rd3 {[%emt 0:00:29]} Nd5 {[%emt 0:00:53]} 27. Rf3 {[%emt 0:01:01]} f6 {[%emt 0:05:36]} 28. Be4 {[%emt 0:00:26]} Nf4 {[%emt 0:00:50]} 29. Nxf4 {[%emt 0:00:29]} Bxf4 {[%emt 0:00:07]} 30. Rd3 {[%emt 0:00:39]} Rxd3 {[%emt 0:00:56]} 31. Bxd3 {[%emt 0:00:05]} Rd8 {[%emt 0:01:39]} 32. Rd1 {[%emt 0:00:04]} Rd5 {[%emt 0:03:15]} 33. Bc2 {[%emt 0:00:34]} Rc5 {[%emt 0:00:14]} 34. Bb1 {[%emt 0:00:31]} a5 {[%emt 0:01:21]} 35. Kf1 {[%emt 0:00:16]} b5 {[%emt 0:01:11]} 36. Ke2 {[%emt 0:00:13]} Rd5 {[%emt 0:05:39]} 37. Bc2 {[%emt 0:00:43]} Rxd1 {[%emt 0:00:22]} 38. Bxd1 {[%emt 0:00:03]} Kd6 {[%emt 0:00:26]} 39. Kd3 {[%emt 0:00:50]} f5 {[%emt 0:01:23]} 40. Bf3 {[%emt 0:00:42]} Kc5 {[%emt 0:01:42]} 41. Be2 {[%emt 0:30:51]} a4 {[%emt 0:31:13]} 42. Bh5 {[%emt 0:00:00]} axb3 {[%emt 0:00:00]} 43. axb3 {[%emt 0:02:55]} Kd6 {[%emt 0:00:00]} 44. Bg6 {[%emt 0:00:00]} Ke5 {[%emt 0:00:00]} 1/2-1/2

[Event "94th FRA-ch Open D 2019"]
[Site "Chartres"]
[Date "2019.08.17"]
[Round "1.3"]
[White "Alcindor, Samuel"]
[Black "Lefort, Guillaume"]
[Result "1-0"]
[ECO "C30"]
[WhiteElo "1580"]
[BlackElo "1411"]
[Annotator "NA"]
[PlyCount "49"]
[EventDate "2019.08.17"]
[EventType "swiss"]
[EventCountry "FRA"]
[SourceTitle "playchess.com"]
[Source "ChessBase"]
[SourceQuality "1"]
[TimeControl "40/5400+30:1800+30"]

1. e4 {[%emt 0:00:00]} e5 {[%emt 0:00:00]} 2. Nc3 {[%emt 0:00:00]} Nf6 {[%emt 0:00:51]} 3. f4 {[%emt 0:00:00]} d6 {[%emt 0:05:45]} 4. Nf3 {[%emt 0:01:16]} Nbd7 {[%emt 0:05:29]} 5. Bc4 {[%emt 0:02:54]} Be7 {[%emt 0:02:47]} 6. O-O {[%emt 0:03:00]} O-O {[%emt 0:01:55]} 7. d3 {[%emt 0:06:28]} exf4 {[%emt 0:16:46]} 8. Bxf4 {[%emt 0:03:36]} Nb6 {[%emt 0:03:07]} 9. Bb3 {[%emt 0:03:39]} c6 {[%emt 0:03:58]} 10. Qd2 {[%emt 0:06:20]} d5 {[%emt 0:07:18]} 11. exd5 {[%emt 0:07:24]} Nfxd5 {[%emt 0:03:07]} 12. Nxd5 {[%emt 0:03:59]} Nxd5 {[%emt 0:00:26]} 13. Rae1 {[%emt 0:00:51]} Bf6 {[%emt 0:17:24]} 14. Be5 {[%emt 0:06:49]} Bxe5 {[%emt 0:03:59]} 15. Nxe5 {[%emt 0:01:53]} Nf6 {[%emt 0:00:58]} 16. Qg5 {[%emt 0:05:47]} Bd7 {[%emt 0:06:37]} 17. Rxf6 {[%emt 0:23:07]} Qxf6 {[%emt 0:00:52]} 18. Qxf6 {[%emt 0:00:09]} gxf6 {[%emt 0:00:09]} 19. Nxd7 {[%emt 0:00:09]} Rfd8 {[%emt 0:01:08]} 20. Re7 {[%emt 0:00:34]} Kg7 {[%emt 0:05:42]} 21. Rxf7+ {[%emt 0:01:18]} Kg6 {[%emt 0:00:27]} 22. Nxf6 {[%emt 0:01:58]} Rf8 {[%emt 0:00:49]} 23. Rxf8 {[%emt 0:00:30]} Rxf8 {[%emt 0:00:06]} 24. Ne4 {[%emt 0:00:14]} b6 {[%emt 0:01:49]} 25. c3 {[%emt 0:20:35]} 1-0

[Event "94th FRA-ch Open D 2019"]
[Site "Chartres"]
[Date "2019.08.17"]
[Round "1.4"]
[White "Vanderpooten, Raphael"]
[Black "De Carvalho Massabo, Raphael"]
[Result "1-0"]
[ECO "A17"]
[WhiteElo "1411"]
[BlackElo "1579"]
[Annotator "NA"]
[PlyCount "71"]
[EventDate "2019.08.17"]
[EventType "swiss"]
[EventCountry "FRA"]
[SourceTitle "playchess.com"]
[Source "ChessBase"]
[SourceQuality "1"]
[TimeControl "40/5400+30:1800+30"]

1. c4 {[%emt 1:30:30]} e6 {[%emt 1:30:30]} 2. g3 {[%emt 0:00:30]} Nf6 {[%emt 0:00:30]} 3. Bg2 {[%emt 0:00:30]} d5 {[%emt 0:00:30]} 4. Nc3 {[%emt 0:00:30]} Nbd7 {[%emt 0:00:30]} 5. cxd5 {[%emt 0:00:30]} Nb6 {[%emt 0:00:30]} 6. dxe6 {[%emt 0:00:30]} fxe6 {[%emt 0:00:30]} 7. d4 {[%emt 0:00:30]} c6 {[%emt 0:00:30]} 8. Bg5 {[%emt 0:00:30]} Bb4 {[%emt 0:00:30]} 9. e3 {[%emt 0:00:30]} O-O {[%emt 0:00:30]} 10. Nge2 {[%emt 0:00:30]} h6 {[%emt 0:00:30]} 11. Bxf6 {[%emt 0:00:30]} Qxf6 {[%emt 0:00:30]} 12. O-O {[%emt 0:00:30]} Bd7 {[%emt 0:00:30]} 13. a3 {[%emt 0:00:30]} Be7 {[%emt 0:00:30]} 14. b4 {[%emt 0:00:30]} Rad8 {[%emt 0:00:30]} 15. Qc2 {[%emt 0:00:30]} Kh8 {[%emt 0:00:30]} 16. Ne4 {[%emt 0:00:30]} Qf5 {[%emt 0:00:30]} 17. Qc1 {[%emt 0:00:30]} Be8 {[%emt 0:00:30]} 18. Nc5 {[%emt 0:00:30]} Bh5 {[%emt 0:00:30]} 19. Nf4 {[%emt 0:00:30]} Bf7 {[%emt 0:00:30]} 20. e4 {[%emt 0:00:30]} Qh7 {[%emt 0:00:30]} 21. Nfxe6 {[%emt 0:00:30]} Bxc5 {[%emt 0:00:30]} 22. Nxc5 {[%emt 0:00:30]} Rxd4 {[%emt 0:00:30]} 23. Nxb7 {[%emt 0:00:30]} Qg6 {[%emt 0:00:30]} 24. Qe3 {[%emt 0:00:30]} Rc4 {[%emt 0:00:30]} 25. Rac1 {[%emt 0:00:30]} Rb8 {[%emt 0:00:30]} 26. Nc5 {[%emt 0:00:30]} Rxc1 {[%emt 0:00:30]} 27. Rxc1 {[%emt 0:00:30]} Rd8 {[%emt 0:00:30]} 28. Qc3 {[%emt 0:00:30]} Bc4 {[%emt 0:00:30]} 29. a4 {[%emt 0:00:30]} Qh5 {[%emt 0:00:30]} 30. Qc2 {[%emt 0:00:30]} Be2 {[%emt 0:00:30]} 31. Ne6 {[%emt 0:00:30]} Rd1+ {[%emt 0:00:30]} 32. Rxd1 {[%emt 0:00:30]} Bxd1 {[%emt 0:00:30]} 33. Qd2 {[%emt 0:00:30]} Bxa4 {[%emt 0:00:30]} 34. Qd8+ {[%emt 0:00:30]} Kh7 {[%emt 0:00:30]} 35. Qe7 {[%emt 0:00:30]} Qg6 {[%emt 0:00:30]} 36. Nf8+ {[%emt 0:00:30]} 1-0

[Event "94th FRA-ch Open D 2019"]
[Site "Chartres"]
[Date "2019.08.17"]
[Round "1.5"]
[White "Linard, Bruno"]
[Black "Thill-Solente, Gabriel"]
[Result "1/2-1/2"]
[ECO "D27"]
[WhiteElo "1577"]
[BlackElo "1410"]
[Annotator "NA"]
[PlyCount "86"]
[EventDate "2019.08.17"]
[EventType "swiss"]
[EventCountry "FRA"]
[SourceTitle "playchess.com"]
[Source "ChessBase"]
[SourceQuality "1"]
[TimeControl "40/5400+30:1800+30"]

1. d4 {[%emt 0:00:00]} d5 {[%emt 0:00:00]} 2. c4 {[%emt 0:00:00]} dxc4 {[%emt 0:00:00]} 3. Nf3 {[%emt 0:00:00]} Nf6 {[%emt 0:00:00]} 4. e3 {[%emt 0:00:15]} e6 {[%emt 0:00:10]} 5. Bxc4 {[%emt 0:01:49]} c5 {[%emt 0:03:08]} 6. O-O {[%emt 0:01:53]} a6 {[%emt 0:01:05]} 7. a4 {[%emt 0:04:04]} Nc6 {[%emt 0:04:21]} 8. Nc3 {[%emt 0:01:35]} Bd6 {[%emt 0:02:00]} 9. dxc5 {[%emt 0:01:58]} Bxc5 {[%emt 0:00:28]} 10. Qxd8+ {[%emt 0:00:39]} Nxd8 {[%emt 0:00:03]} 11. b3 {[%emt 0:09:40]} O-O {[%emt 0:01:08]} 12. Bb2 {[%emt 0:02:25]} Nc6 {[%emt 0:03:12]} 13. Rfd1 {[%emt 0:02:03]} Na5 {[%emt 0:01:08]} 14. Nd2 {[%emt 0:01:41]} Nxc4 {[%emt 0:00:59]} 15. Nxc4 {[%emt 0:00:32]} b6 {[%emt 0:01:20]} 16. Ba3 {[%emt 0:01:52]} Bxa3 {[%emt 0:02:06]} 17. Nxa3 {[%emt 0:00:06]} Bd7 {[%emt 0:04:28]} 18. Nc4 {[%emt 0:00:25]} Rab8 {[%emt 0:00:56]} 19. Ne5 {[%emt 0:00:36]} Rfd8 {[%emt 0:01:36]} 20. Rd3 {[%emt 0:07:44]} Be8 {[%emt 0:01:40]} 21. Rad1 {[%emt 0:00:33]} Rxd3 {[%emt 0:00:45]} 22. Rxd3 {[%emt 0:01:04]} Rc8 {[%emt 0:00:28]} 23. h3 {[%emt 0:00:39]} h6 {[%emt 0:00:29]} 24. Nc4 {[%emt 0:07:08]} b5 {[%emt 0:09:27]} 25. axb5 {[%emt 0:00:27]} axb5 {[%emt 0:00:36]} 26. Nd2 {[%emt 0:02:05]} Kf8 {[%emt 0:03:52]} 27. Nce4 {[%emt 0:01:40]} Nxe4 {[%emt 0:00:50]} 28. Nxe4 {[%emt 0:00:12]} Ke7 {[%emt 0:00:06]} 29. Rc3 {[%emt 0:01:03]} Rxc3 {[%emt 0:01:01]} 30. Nxc3 {[%emt 0:00:07]} f5 {[%emt 0:00:38]} 31. f4 {[%emt 0:00:46]} Kd6 {[%emt 0:02:20]} 32. b4 {[%emt 0:00:29]} Kc6 {[%emt 0:05:29]} 33. Kf2 {[%emt 0:00:28]} Kd6 {[%emt 0:01:20]} 34. Ke1 {[%emt 0:09:01]} Bc6 {[%emt 0:07:18]} 35. Kf2 {[%emt 0:01:15]} e5 {[%emt 0:03:21]} 36. h4 {[%emt 0:02:45]} e4 {[%emt 0:06:06]} 37. g3 {[%emt 0:02:23]} h5 {[%emt 0:01:57]} 38. Ke1 {[%emt 0:02:42]} Be8 {[%emt 0:01:55]} 39. Kd2 {[%emt 0:00:19]} Kc6 {[%emt 0:02:00]} 40. Ne2 {[%emt 0:00:43]} Kd5 {[%emt 0:00:39]} 41. Kc3 {[%emt 0:30:08]} Bc6 {[%emt 0:31:34]} 42. Nd4 {[%emt 0:00:27]} Bd7 {[%emt 0:29:01]} 43. Kb3 {[%emt 0:35:49]} Kd6 1/2-1/2

[Event "94th FRA-ch Open D 2019"]
[Site "Chartres"]
[Date "2019.08.17"]
[Round "1.6"]
[White "Bernardon, Alexis"]
[Black "Bernard, Marc-Olivier"]
[Result "0-1"]
[ECO "A02"]
[WhiteElo "1407"]
[BlackElo "1570"]
[Annotator "NA"]
[PlyCount "114"]
[EventDate "2019.08.17"]
[EventType "swiss"]
[EventCountry "FRA"]
[SourceTitle "playchess.com"]
[Source "ChessBase"]
[SourceQuality "1"]
[TimeControl "40/5400+30:1800+30"]

1. f4 {[%emt 0:00:00]} Nf6 {[%emt 0:00:18]} 2. Nf3 {[%emt 0:01:12]} e6 {[%emt 0:01:49]} 3. Nc3 {[%emt 0:04:26]} d5 {[%emt 0:02:19]} 4. e3 {[%emt 0:02:16]} Be7 {[%emt 0:02:50]} 5. Be2 {[%emt 0:02:27]} O-O {[%emt 0:01:34]} 6. d3 {[%emt 0:01:49]} c5 7. e4 {[%emt 1:21:20]} d4 {[%emt 0:05:28]} 8. Nb5 {[%emt 0:00:00]} Qa5+ {[%emt 0:00:51]} 9. c3 {[%emt 0:00:00]} Qxb5 {[%emt 0:00:44]} 10. cxd4 {[%emt 0:01:30]} cxd4 {[%emt 1:19:07]} 11. b3 {[%emt 0:00:00]} Bb4+ {[%emt 0:00:00]} 12. Bd2 {[%emt 0:00:00]} Bxd2+ {[%emt 0:00:00]} 13. Qxd2 {[%emt 0:00:00]} Nc6 {[%emt 0:00:00]} 14. O-O {[%emt 0:00:00]} a5 {[%emt 0:00:00]} 15. Rab1 {[%emt 0:00:00]} b6 {[%emt 0:00:00]} 16. a4 {[%emt 0:00:00]} Qa6 {[%emt 0:00:00]} 17. Qb2 {[%emt 0:00:00]} Rd8 {[%emt 0:00:00]} 18. Rfc1 {[%emt 0:00:00]} Bb7 {[%emt 0:00:00]} 19. Rc4 {[%emt 0:00:00]} Qa7 {[%emt 0:00:00]} 20. e5 {[%emt 0:00:00]} Ng4 {[%emt 0:00:00]} 21. Nh4 {[%emt 0:00:00]} Ne3 {[%emt 0:00:00]} 22. Rcc1 {[%emt 0:00:00]} Nd5 {[%emt 0:00:00]} 23. f5 {[%emt 0:00:00]} Nc3 {[%emt 0:00:00]} 24. Ra1 {[%emt 0:00:00]} Nxe5 {[%emt 0:00:00]} 25. fxe6 {[%emt 0:00:00]} fxe6 {[%emt 0:00:00]} 26. Rf1 {[%emt 0:00:00]} Ba6 {[%emt 0:00:00]} 27. Nf3 {[%emt 0:00:00]} Nxd3 {[%emt 0:00:00]} 28. Bxd3 {[%emt 0:00:00]} Bxd3 {[%emt 0:00:00]} 29. Rfe1 {[%emt 0:00:00]} Bf5 {[%emt 0:00:00]} 30. Rac1 {[%emt 0:00:00]} b5 {[%emt 0:00:00]} 31. axb5 {[%emt 0:10:30]} Nxb5 {[%emt 0:00:00]} 32. Ne5 {[%emt 0:00:00]} Rac8 {[%emt 0:00:00]} 33. Nc6 {[%emt 0:00:00]} Rxc6 {[%emt 0:00:00]} 34. Rxc6 {[%emt 0:00:00]} d3+ {[%emt 0:00:00]} 35. Kh1 {[%emt 0:00:00]} Nd4 {[%emt 0:00:00]} 36. Rc4 {[%emt 0:00:00]} Nc2 {[%emt 0:00:00]} 37. Rd1 {[%emt 0:00:00]} Qe3 {[%emt 0:00:00]} 38. Rc7 {[%emt 0:00:00]} Qg5 {[%emt 0:00:00]} 39. Rc5 {[%emt 0:00:00]} Qg4 {[%emt 0:00:00]} 40. Rd2 {[%emt 0:00:00]} Qf4 {[%emt 0:00:00]} 41. Qc1 {[%emt 0:00:00]} Rb8 {[%emt 0:26:16]} 42. Rdxc2 {[%emt 0:00:00]} Qxc1+ {[%emt 0:06:42]} 43. Rxc1 {[%emt 0:00:00]} Rxb3 {[%emt 0:00:19]} 44. Rxa5 {[%emt 0:00:00]} Rb2 {[%emt 0:00:19]} 45. Ra7 {[%emt 0:00:00]} h6 {[%emt 0:00:36]} 46. Rd7 {[%emt 0:00:00]} Be4 {[%emt 0:00:27]} 47. Rg1 {[%emt 0:00:00]} Bd5 {[%emt 0:00:53]} 48. h3 {[%emt 0:00:00]} Re2 {[%emt 0:00:26]} 49. Ra7 {[%emt 0:00:00]} d2 {[%emt 0:03:24]} 50. Raa1 {[%emt 0:00:00]} e5 {[%emt 0:00:10]} 51. Kh2 {[%emt 0:00:00]} e4 {[%emt 0:00:51]} 52. Kg3 {[%emt 0:00:25]} g5 {[%emt 0:01:57]} 53. Rab1 {[%emt 0:03:08]} e3 {[%emt 0:00:39]} 54. Ra1 {[%emt 0:04:51]} Rf2 {[%emt 0:00:39]} 55. Rab1 {[%emt 0:02:18]} Rxg2+ {[%emt 0:04:21]} 56. Rxg2 {[%emt 0:00:16]} Bxg2 {[%emt 0:00:15]} 57. Kxg2 {[%emt 0:02:48]} e2 {[%emt 0:00:20]} 0-1

[Event "94th FRA-ch Open D 2019"]
[Site "Chartres"]
[Date "2019.08.18"]
[Round "2.1"]
[White "Decurninge, Brice"]
[Black "Alcindor, Samuel"]
[Result "1/2-1/2"]
[ECO "B30"]
[WhiteElo "1462"]
[BlackElo "1580"]
[Annotator "NA"]
[PlyCount "91"]
[EventDate "2019.08.17"]
[EventType "swiss"]
[EventCountry "FRA"]
[SourceTitle "playchess.com"]
[Source "ChessBase"]
[SourceQuality "1"]
[TimeControl "40/5400+30:1800+30"]

1. e4 {[%emt 0:00:00]} c5 {[%emt 0:00:00]} 2. Nc3 {[%emt 0:00:00]} e6 {[%emt 0:03:24]} 3. Nf3 {[%emt 0:02:56]} Nc6 {[%emt 0:01:45]} 4. Bb5 {[%emt 0:08:32]} Nge7 {[%emt 0:05:58]} 5. d4 {[%emt 0:01:50]} a6 {[%emt 0:04:00]} 6. Bxc6 {[%emt 0:00:41]} Nxc6 {[%emt 0:00:56]} 7. d5 {[%emt 0:01:04]} exd5 {[%emt 0:19:50]} 8. exd5 {[%emt 0:00:51]} Qe7+ {[%emt 0:00:06]} 9. Be3 {[%emt 0:00:45]} Ne5 {[%emt 0:00:09]} 10. O-O {[%emt 0:05:46]} d6 {[%emt 0:03:30]} 11. Nxe5 {[%emt 0:08:13]} dxe5 {[%emt 0:01:32]} 12. Re1 {[%emt 0:12:24]} g6 {[%emt 0:22:38]} 13. Ne4 {[%emt 0:01:22]} Qd8 {[%emt 0:08:48]} 14. Nxc5 {[%emt 0:12:01]} Bd6 {[%emt 0:01:51]} 15. Ne4 {[%emt 0:04:27]} O-O {[%emt 0:00:42]} 16. c4 {[%emt 0:07:52]} Bf5 {[%emt 0:02:18]} 17. Nxd6 {[%emt 0:00:39]} Qxd6 {[%emt 0:00:08]} 18. c5 {[%emt 0:01:01]} Qc7 {[%emt 0:01:02]} 19. Qd2 {[%emt 0:02:37]} Rad8 {[%emt 0:01:57]} 20. Bh6 {[%emt 0:06:52]} Rfe8 {[%emt 0:00:08]} 21. Bg5 {[%emt 0:02:08]} Rd7 {[%emt 0:03:11]} 22. Rac1 {[%emt 0:02:59]} Kg7 {[%emt 0:03:37]} 23. Bh6+ {[%emt 0:03:53]} Kg8 {[%emt 0:00:09]} 24. d6 {[%emt 0:03:00]} Qc8 {[%emt 0:00:19]} 25. Qg5 {[%emt 0:00:56]} Qd8 {[%emt 0:00:22]} 26. Qxd8 {[%emt 0:00:13]} Rdxd8 {[%emt 0:00:41]} 27. Bg5 {[%emt 0:00:22]} Rc8 {[%emt 0:00:18]} 28. Red1 {[%emt 0:02:32]} Bd7 {[%emt 0:00:31]} 29. Be7 {[%emt 0:00:12]} e4 {[%emt 0:04:25]} 30. Rd4 {[%emt 0:03:21]} f5 {[%emt 0:00:24]} 31. b4 {[%emt 0:00:45]} Rc6 {[%emt 0:00:55]} 32. a4 {[%emt 0:00:43]} Rec8 {[%emt 0:00:12]} 33. Rdc4 {[%emt 0:01:34]} b6 {[%emt 0:01:09]} 34. R4c3 {[%emt 0:01:56]} bxc5 {[%emt 0:00:59]} 35. bxc5 {[%emt 0:01:36]} Rb8 {[%emt 0:00:29]} 36. Kf1 {[%emt 0:00:41]} Rb4 {[%emt 0:00:37]} 37. Rc4 {[%emt 0:00:31]} Rxc4 {[%emt 0:03:43]} 38. Rxc4 {[%emt 0:00:15]} Kf7 {[%emt 0:00:05]} 39. Ke2 {[%emt 0:00:33]} Ke6 {[%emt 0:00:05]} 40. Ke3 {[%emt 0:00:52]} Kd5 {[%emt 0:01:17]} 41. Rb4 {[%emt 0:04:05]} Rxc5 {[%emt 0:00:28]} 42. Rb7 {[%emt 0:00:53]} Ke6 {[%emt 0:00:14]} 43. Rb4 {[%emt 0:11:47]} Ra5 {[%emt 0:00:39]} 44. Bd8 {[%emt 0:00:21]} Rxa4 {[%emt 0:01:39]} 45. Rxa4 {[%emt 0:00:08]} Bxa4 {[%emt 0:00:07]} 46. Bc7 {[%emt 0:00:37]} 1/2-1/2

[Event "94th FRA-ch Open D 2019"]
[Site "Chartres"]
[Date "2019.08.18"]
[Round "2.2"]
[White "Bernard, Marc-Olivier"]
[Black "Boisselet, Gilles"]
[Result "1/2-1/2"]
[ECO "D40"]
[WhiteElo "1570"]
[BlackElo "1449"]
[Annotator "NA"]
[PlyCount "81"]
[EventDate "2019.08.17"]
[EventType "swiss"]
[EventCountry "FRA"]
[SourceTitle "playchess.com"]
[Source "ChessBase"]
[SourceQuality "1"]
[TimeControl "40/5400+30:1800+30"]

1. e4 {[%emt 0:00:00]} c6 {[%emt 0:00:00]} 2. d4 {[%emt 0:00:00]} d5 {[%emt 0:00:06]} 3. exd5 {[%emt 0:00:48]} cxd5 {[%emt 0:00:33]} 4. c4 {[%emt 0:01:06]} Nf6 {[%emt 0:00:50]} 5. Nf3 {[%emt 0:00:59]} e6 {[%emt 0:03:51]} 6. Nc3 {[%emt 0:01:17]} Nc6 {[%emt 0:00:39]} 7. a3 {[%emt 0:02:43]} a6 {[%emt 0:03:03]} 8. b4 {[%emt 0:01:42]} b5 {[%emt 0:02:14]} 9. cxb5 {[%emt 0:01:45]} axb5 {[%emt 0:02:13]} 10. Bb2 {[%emt 0:01:00]} Bd7 {[%emt 0:11:14]} 11. Bxb5 {[%emt 0:03:45]} Be7 {[%emt 0:04:56]} 12. Bxc6 {[%emt 0:00:49]} Bxc6 {[%emt 0:00:56]} 13. Ne5 {[%emt 0:02:13]} Bb7 {[%emt 0:05:12]} 14. O-O {[%emt 0:01:37]} O-O {[%emt 0:01:22]} 15. b5 {[%emt 0:00:49]} Qb6 {[%emt 0:02:45]} 16. a4 {[%emt 0:02:37]} Bd6 {[%emt 0:12:55]} 17. Ne2 {[%emt 0:12:33]} Bxe5 {[%emt 0:04:19]} 18. dxe5 {[%emt 0:00:14]} Nd7 {[%emt 0:00:27]} 19. Qd2 {[%emt 0:05:47]} Rfc8 {[%emt 0:05:48]} 20. Rfc1 {[%emt 0:08:55]} Rxc1+ {[%emt 0:02:32]} 21. Nxc1 {[%emt 0:00:27]} Qc7 {[%emt 0:02:07]} 22. f4 {[%emt 0:00:45]} Qc4 {[%emt 0:01:33]} 23. Qd4 {[%emt 0:01:13]} Qc2 {[%emt 0:01:26]} 24. Qc3 {[%emt 0:02:28]} Qe4 {[%emt 0:02:31]} 25. Qg3 {[%emt 0:01:15]} Rxa4 {[%emt 0:02:15]} 26. Rxa4 {[%emt 0:03:05]} Qxa4 {[%emt 0:00:15]} 27. h4 {[%emt 0:05:26]} Qxb5 {[%emt 0:02:04]} 28. Qb3 {[%emt 0:04:17]} Qc6 {[%emt 0:01:45]} 29. Qc3 {[%emt 0:01:58]} Nc5 {[%emt 0:03:53]} 30. Qd4 {[%emt 0:08:57]} Ne4 {[%emt 0:02:57]} 31. Ne2 {[%emt 0:09:27]} Ba6 {[%emt 0:02:14]} 32. Nc3 {[%emt 0:01:15]} Nxc3 {[%emt 0:01:33]} 33. Qxc3 {[%emt 0:00:46]} Qxc3 {[%emt 0:00:30]} 34. Bxc3 {[%emt 0:00:03]} Kf8 {[%emt 0:00:12]} 35. Kf2 {[%emt 0:00:05]} Ke7 {[%emt 0:00:14]} 36. Ke3 {[%emt 0:00:12]} Kd7 {[%emt 0:01:54]} 37. g4 {[%emt 0:00:13]} g6 {[%emt 0:00:22]} 38. g5 {[%emt 0:00:28]} Bf1 {[%emt 0:00:32]} 39. Bd4 {[%emt 0:01:00]} Bh3 {[%emt 0:00:30]} 40. Bb2 {[%emt 0:00:32]} Bf5 {[%emt 0:00:15]} 41. Ba1 {[%emt 0:30:28]} 1/2-1/2